fUSD/lending_fUSD_20260526
["ID","MTS","AMOUNT","RATE_DAILY","PERIOD"]
[423056123,1779802273000,-151.0,0.00035616,7]
[423056124,1779802273000,-151.0,0.00035616,7]
[423056130,1779802273000,-151.0,0.00035616,7]
[423056129,1779802273000,-1823.388032,0.00035616,7]
[423056135,1779802273000,-1783.624553,0.00035616,7]
[423056134,1779802273000,-151.0,0.00035616,7]
[423056138,1779802273000,-151.0,0.00035616,7]
[423056133,1779802273000,-1823.388032,0.00035616,7]
[423056132,1779802273000,-1783.624553,0.00035616,7]
[423056131,1779802273000,-151.0,0.00035616,7]
[423056136,1779802273000,-250.898481,0.00035616,7]
[423056140,1779802273000,-1823.388032,0.00035616,7]
[423056139,1779802273000,-1783.624553,0.00035616,7]
[423056141,1779802273000,-151.0,0.00035616,7]
[423056147,1779802273000,-151.0,0.00035616,7]
[423056146,1779802273000,-1823.388032,0.00035616,7]
[423056142,1779802273000,-1783.624553,0.00035616,7]
[423056144,1779802273000,-151.0,0.00035616,7]
[423056177,1779802273000,-1497.676533,0.00035616,7]
[423056168,1779802273000,-151.0,0.00035616,7]
[423056219,1779802273000,-1673.919765,0.00035616,7]
[423056205,1779802273000,-1497.676533,0.00035616,7]
[423056204,1779802273000,-1673.919765,0.00035616,7]
[423056206,1779802273000,-1498.560399,0.00035616,7]
[423056207,1779802273000,-1673.919765,0.00035616,7]
[423056208,1779802273000,-1497.676533,0.00035616,7]
[423056211,1779802273000,-1497.676533,0.00035616,7]
[423056210,1779802273000,-1673.919765,0.00035616,7]
[423056212,1779802273000,-1498.560399,0.00035616,7]
[423056203,1779802273000,-1498.560399,0.00035616,7]
[423056213,1779802273000,-1497.676533,0.00035616,7]
[423056214,1779802273000,-1673.919765,0.00035616,7]
[423056220,1779802273000,-1497.676533,0.00035616,7]
[423056215,1779802273000,-1498.560399,0.00035616,7]
[423056216,1779802273000,-1497.676533,0.00035616,7]
[423056217,1779802273000,-1673.919765,0.00035616,7]
[423056221,1779802273000,-1498.560399,0.00035616,7]
[423056222,1779802273000,-1673.919765,0.00035616,7]
[423056218,1779802273000,-1498.560399,0.00035616,7]
[423056223,1779802273000,-1498.560399,0.00035616,7]
[423056225,1779802273000,-1673.919765,0.00035616,7]
[423056224,1779802273000,-1497.676533,0.00035616,7]
[423056167,1779802273000,-152.678441,0.00035616,7]
[423056226,1779802273000,-1498.560399,0.00035616,7]
[423056202,1779802273000,-1497.676533,0.00035616,7]
[423056195,1779802273000,-1673.919765,0.00035616,7]
[423056209,1779802273000,-1498.560399,0.00035616,7]
[423056197,1779802273000,-1497.676533,0.00035616,7]
[423056170,1779802273000,-151.0,0.00035616,7]
[423056169,1779802273000,-151.0,0.00035616,7]
[423056179,1779802273000,-151.0,0.00035616,7]
[423056186,1779802273000,-151.0,0.00035616,7]
[423056187,1779802273000,-1673.919765,0.00035616,7]
[423056181,1779802273000,-151.0,0.00035616,7]
[423056191,1779802273000,-1673.919765,0.00035616,7]
[423056183,1779802273000,-1497.676533,0.00035616,7]
[423056178,1779802273000,-253.519031,0.00035616,7]
[423056185,1779802273000,-1497.676533,0.00035616,7]
[423056184,1779802273000,-151.0,0.00035616,7]
[423056188,1779802273000,-1498.560399,0.00035616,7]
[423056180,1779802273000,-1497.676533,0.00035616,7]
[423056182,1779802273000,-1497.676533,0.00035616,7]
[423056189,1779802273000,-1497.676533,0.00035616,7]
[423056190,1779802273000,-151.0,0.00035616,7]
[423056200,1779802273000,-1498.560399,0.00035616,7]
[423056199,1779802273000,-1497.676533,0.00035616,7]
[423056198,1779802273000,-1673.919765,0.00035616,7]
[423056201,1779802273000,-1673.919765,0.00035616,7]
[423056194,1779802273000,-219.267927,0.00035616,7]
[423056192,1779802273000,-1497.676533,0.00035616,7]
[423056196,1779802273000,-1498.560399,0.00035616,7]
[423056193,1779802273000,-1498.560399,0.00035616,7]
[423056271,1779802274000,-2219.484288,0.00035616,7]
[423056269,1779802274000,-1785.793935,0.00035616,7]
[423056265,1779802274000,-2294.68112,0.00035616,7]
[423056264,1779802274000,-2219.484288,0.00035616,7]
[423056268,1779802274000,-2219.484288,0.00035616,7]
[423056261,1779802274000,-2294.68112,0.00035616,7]
[423056266,1779802274000,-2219.484288,0.00035616,7]
[423056263,1779802274000,-2294.68112,0.00035616,7]
[423056254,1779802274000,-2219.484288,0.00035616,7]
[423056262,1779802274000,-2219.484288,0.00035616,7]
[423056257,1779802274000,-2294.68112,0.00035616,7]
[423056270,1779802274000,-2294.68112,0.00035616,7]
[423056267,1779802274000,-2294.68112,0.00035616,7]
[423056272,1779802274000,-1785.793935,0.00035616,7]
[423056286,1779802274000,-2294.681115,0.00035616,7]
[423056274,1779802274000,-2219.484288,0.00035616,7]
[423056273,1779802274000,-2294.68112,0.00035616,7]
[423056279,1779802274000,-2294.68112,0.00035616,7]
[423056282,1779802274000,-2294.68112,0.00035616,7]
[423056277,1779802274000,-2294.68112,0.00035616,7]
[423056275,1779802274000,-158.379791,0.00035616,7]
[423056283,1779802274000,-2219.484288,0.00035616,7]
[423056280,1779802274000,-2219.484288,0.00035616,7]
[423056281,1779802274000,-1785.793935,0.00035616,7]
[423056276,1779802274000,-1785.793935,0.00035616,7]
[423056284,1779802274000,-1785.793935,0.00035616,7]
[423056285,1779802274000,-151.0,0.00035616,7]
[423056258,1779802274000,-167.293721,0.00035616,7]
[423056278,1779802274000,-2219.484288,0.00035616,7]
[423056256,1779802274000,-2219.484288,0.00035616,7]
[423056229,1779802274000,-1497.676534,0.00035616,7]
[423056251,1779802274000,-2294.68112,0.00035616,7]
[423056233,1779802274000,-1498.560399,0.00035616,7]
[423056232,1779802274000,-2294.68112,0.00035616,7]
[423056235,1779802274000,-2294.68112,0.00035616,7]
[423056234,1779802274000,-1673.919765,0.00035616,7]
[423056231,1779802274000,-1673.919765,0.00035616,7]
[423056228,1779802274000,-2294.68112,0.00035616,7]
[423056227,1779802274000,-1497.676533,0.00035616,7]
[423056230,1779802274000,-1498.560399,0.00035616,7]
[423056236,1779802274000,-1498.560399,0.00035616,7]
[423056237,1779802274000,-1673.919765,0.00035616,7]
[423056239,1779802274000,-2294.68112,0.00035616,7]
[423056240,1779802274000,-1498.560399,0.00035616,7]
[423056247,1779802274000,-2294.68112,0.00035616,7]
[423056241,1779802274000,-1673.919765,0.00035616,7]
[423056242,1779802274000,-2219.484288,0.00035616,7]
[423056244,1779802274000,-1673.919765,0.00035616,7]
[423056238,1779802274000,-2219.484288,0.00035616,7]
[423056243,1779802274000,-2294.68112,0.00035616,7]
[423056246,1779802274000,-2219.484288,0.00035616,7]
[423056245,1779802274000,-1498.560399,0.00035616,7]
[423056249,1779802274000,-1673.919765,0.00035616,7]
[423056260,1779802274000,-2294.68112,0.00035616,7]
[423056252,1779802274000,-1498.560401,0.00035616,7]
[423056253,1779802274000,-1673.919761,0.00035616,7]
[423056255,1779802274000,-2294.68112,0.00035616,7]
[423056248,1779802274000,-1498.560399,0.00035616,7]
[423056259,1779802274000,-2219.484288,0.00035616,7]
[423056250,1779802274000,-2219.484288,0.00035616,7]
[423056289,1779802274000,-151.0,0.00035616,7]
[423056342,1779802274000,-247.318742,0.00035616,7]
[423056288,1779802274000,-1785.793935,0.00035616,7]
[423056321,1779802274000,-221.042624,0.00035616,7]
[423056318,1779802274000,-1785.79393694,0.00035616,7]
[423056320,1779802274000,-329.513541,0.00035616,7]
[423056326,1779802274000,-329.513541,0.00035616,7]
[423056334,1779802274000,-221.042624,0.00035616,7]
[423056325,1779802274000,-247.318742,0.00035616,7]
[423056335,1779802274000,-247.318742,0.00035616,7]
[423056328,1779802274000,-232.516727,0.00035616,7]
[423056331,1779802274000,-221.042624,0.00035616,7]
[423056327,1779802274000,-221.042624,0.00035616,7]
[423056330,1779802274000,-247.318742,0.00035616,7]
[423056333,1779802274000,-247.318742,0.00035616,7]
[423056336,1779802274000,-329.513541,0.00035616,7]
[423056323,1779802274000,-329.513541,0.00035616,7]
[423056329,1779802274000,-329.513541,0.00035616,7]
[423056339,1779802274000,-329.513541,0.00035616,7]
[423056343,1779802274000,-221.042624,0.00035616,7]
[423056344,1779802274000,-329.513541,0.00035616,7]
[423056348,1779802274000,-247.318742,0.00035616,7]
[423056346,1779802274000,-221.042624,0.00035616,7]
[423056338,1779802274000,-247.318742,0.00035616,7]
[423056345,1779802274000,-247.318742,0.00035616,7]
[423056347,1779802274000,-329.513541,0.00035616,7]
[423056349,1779802274000,-221.042624,0.00035616,7]
[423056341,1779802274000,-329.513541,0.00035616,7]
[423056340,1779802274000,-221.042624,0.00035616,7]
[423056350,1779802274000,-247.318742,0.00035616,7]
[423056291,1779802274000,-1785.793935,0.00035616,7]
[423056332,1779802274000,-329.513541,0.00035616,7]
[423056322,1779802274000,-247.318742,0.00035616,7]
[423056337,1779802274000,-221.042624,0.00035616,7]
[423056324,1779802274000,-151.0,0.00035616,7]
[423056317,1779802274000,-221.042624,0.00035616,7]
[423056287,1779802274000,-2219.484288,0.00035616,7]
[423056296,1779802274000,-1785.793935,0.00035616,7]
[423056297,1779802274000,-1785.793935,0.00035616,7]
[423056292,1779802274000,-262.712565,0.00035616,7]
[423056298,1779802274000,-1785.793935,0.00035616,7]
[423056293,1779802274000,-2219.484288,0.00035616,7]
[423056299,1779802274000,-1785.793935,0.00035616,7]
[423056295,1779802274000,-2219.484283,0.00035616,7]
[423056294,1779802274000,-1785.793935,0.00035616,7]
[423056311,1779802274000,-221.042624,0.00035616,7]
[423056312,1779802274000,-329.513541,0.00035616,7]
[423056301,1779802274000,-1785.793935,0.00035616,7]
[423056302,1779802274000,-1785.793935,0.00035616,7]
[423056290,1779802274000,-2219.484288,0.00035616,7]
[423056303,1779802274000,-221.042624,0.00035616,7]
[423056300,1779802274000,-1785.793935,0.00035616,7]
[423056316,1779802274000,-329.513541,0.00035616,7]
[423056315,1779802274000,-247.318742,0.00035616,7]
[423056314,1779802274000,-1785.793935,0.00035616,7]
[423056313,1779802274000,-221.042624,0.00035616,7]
[423056304,1779802274000,-1785.793935,0.00035616,7]
[423056319,1779802274000,-247.318742,0.00035616,7]
[423056310,1779802274000,-1785.793935,0.00035616,7]
[423056305,1779802274000,-329.513541,0.00035616,7]
[423056306,1779802274000,-221.042624,0.00035616,7]
[423056308,1779802274000,-329.513541,0.00035616,7]
[423056307,1779802274000,-1785.793935,0.00035616,7]
[423056309,1779802274000,-247.318742,0.00035616,7]
[423056396,1779802275000,-151.0,0.000361,7]
[423056399,1779802275000,-168.95222,0.000361,7]
[423056397,1779802275000,-151.0,0.000361,7]
[423056383,1779802275000,-971.28894687,0.00036,120]
[423056398,1779802275000,-228.390945,0.000361,7]
[423056386,1779802275000,-213.56573393,0.00036,120]
[423056389,1779802275000,-504.27303855,0.00036,120]
[423056388,1779802275000,-376.49712655,0.00036,120]
[423056385,1779802275000,-736.25607202,0.00036,120]
[423056387,1779802275000,-194.94120344,0.00036,120]
[423056400,1779802275000,-151.0,0.000361,7]
[423056395,1779802275000,-230.650941,0.000361,7]
[423056390,1779802275000,-520.34694637,0.00036,120]
[423056404,1779802275000,-168.95222,0.000361,7]
[423056393,1779802275000,-400.0,0.00036048,2]
[423056392,1779802275000,-400.0,0.00036048,2]
[423056394,1779802275000,-200.0,0.000361,30]
[423056401,1779802275000,-168.95222,0.000361,7]
[423056402,1779802275000,-248.784381,0.000361,7]
[423056410,1779802275000,-151.0,0.00036101,7]
[423056403,1779802275000,-168.95222,0.000361,7]
[423056406,1779802275000,-151.0,0.000361,7]
[423056405,1779802275000,-222.967898,0.000361,7]
[423056407,1779802275000,-151.0,0.000361,7]
[423056412,1779802275000,-537.656575,0.00036101,7]
[423056409,1779802275000,-151.0,0.00036101,7]
[423056380,1779802275000,-196.79854578,0.00036,120]
[423056391,1779802275000,-400.0,0.00036048,2]
[423056408,1779802275000,-151.0,0.00036101,7]
[423056351,1779802275000,-329.513541,0.00035616,7]
[423056382,1779802275000,-272.23239821,0.00036,120]
[423056353,1779802275000,-247.318742,0.00035616,7]
[423056352,1779802275000,-221.042624,0.00035616,7]
[423056360,1779802275000,-247.318742,0.00035616,7]
[423056356,1779802275000,-247.318742,0.00035616,7]
[423056354,1779802275000,-266.691717,0.00035616,7]
[423056355,1779802275000,-329.513541,0.00035616,7]
[423056362,1779802275000,-1040.64737684,0.0003564,2]
[423056359,1779802275000,-329.513541,0.00035616,7]
[423056357,1779802275000,-266.691717,0.00035616,7]
[423056361,1779802275000,-218.4438059,0.0003563,120]
[423056358,1779802275000,-221.042624,0.00035616,7]
[423056364,1779802275000,-200.0,0.0003564,2]
[423056374,1779802275000,-2000.0,0.0003589,30]
[423056384,1779802275000,-1876.42041545,0.00036,120]
[423056367,1779802275000,-575.25,0.0003567,98]
[423056375,1779802275000,-350.0,0.0003589,5]
[423056365,1779802275000,-341.16445292,0.0003564,2]
[423056366,1779802275000,-1651.81367706,0.0003564,2]
[423056369,1779802275000,-1051.29,0.00035681,7]
[423056368,1779802275000,-351.0879834,0.0003568,120]
[423056370,1779802275000,-1802.22,0.00035681,7]
[423056373,1779802275000,-936.95,0.00035863,7]
[423056371,1779802275000,-415.19,0.000357,7]
[423056372,1779802275000,-1051.29,0.0003586,7]
[423056376,1779802275000,-1500.0,0.000359,13]
[423056378,1779802275000,-4018.34,0.00036,14]
[423056379,1779802275000,-177.37155278,0.00036,120]
[423056377,1779802275000,-230.24578172,0.00035929,2]
[423056363,1779802275000,-233.5188934,0.0003564,2]
[423056411,1779802275000,-537.656575,0.00036101,7]
[423056381,1779802275000,-897.55774229,0.00036,120]
[423056414,1779802275000,-537.656575,0.00036101,7]
[423056444,1779802275000,-215.370894,0.00036101,7]
[423056446,1779802275000,-215.370894,0.00036101,7]
[423056445,1779802275000,-215.370894,0.00036101,7]
[423056448,1779802275000,-151.0,0.00036101,7]
[423056452,1779802275000,-151.0,0.00036101,7]
[423056453,1779802275000,-697.502463,0.00036101,7]
[423056454,1779802275000,-697.502469,0.00036101,7]
[423056455,1779802275000,-205.321717,0.00036101,7]
[423056460,1779802275000,-200.0,0.00036188,2]
[423056457,1779802275000,-151.0,0.00036101,7]
[423056459,1779802275000,-242.15909246,0.00036188,2]
[423056463,1779802275000,-160.0,0.000362,31]
[423056456,1779802275000,-151.0,0.00036101,7]
[423056447,1779802275000,-215.370893,0.00036101,7]
[423056461,1779802275000,-1712.93078311,0.00036188,2]
[423056458,1779802275000,-1023.8,0.00036153,30]
[423056464,1779802275000,-575.25,0.0003621,114]
[423056465,1779802275000,-207.60625134,0.00036257,66]
[423056466,1779802275000,-2965.08836171,0.00036303,2]
[423056467,1779802275000,-151.0,0.00036397,60]
[423056469,1779802275000,-500.0,0.00036398,120]
[423056475,1779802275000,-500.0,0.00036589,120]
[423056471,1779802275000,-500.0,0.00036398,120]
[423056470,1779802275000,-500.0,0.00036398,7]
[423056474,1779802275000,-6323.29,0.00036559,2]
[423056468,1779802275000,-500.0,0.00036398,120]
[423056472,1779802275000,-2000.0,0.00036399,120]
[423056473,1779802275000,-59703.0,0.000364,30]
[423056462,1779802275000,-160.0,0.000362,31]
[423056450,1779802275000,-697.502463,0.00036101,7]
[423056413,1779802275000,-537.656575,0.00036101,7]
[423056449,1779802275000,-151.0,0.00036101,7]
[423056424,1779802275000,-423.06458,0.00036101,7]
[423056415,1779802275000,-237.051859,0.00036101,7]
[423056416,1779802275000,-237.051859,0.00036101,7]
[423056423,1779802275000,-423.06458,0.00036101,7]
[423056418,1779802275000,-151.0,0.00036101,7]
[423056425,1779802275000,-423.064589,0.00036101,7]
[423056417,1779802275000,-237.051859,0.00036101,7]
[423056426,1779802275000,-2081.017174,0.00036101,7]
[423056440,1779802275000,-434.51865,0.00036101,7]
[423056422,1779802275000,-423.06458,0.00036101,7]
[423056420,1779802275000,-171.77507,0.00036101,7]
[423056421,1779802275000,-151.0,0.00036101,7]
[423056433,1779802275000,-1345.563292,0.00036101,7]
[423056437,1779802275000,-151.0,0.00036101,7]
[423056419,1779802275000,-237.051859,0.00036101,7]
[423056438,1779802275000,-434.51865,0.00036101,7]
[423056436,1779802275000,-1345.563292,0.00036101,7]
[423056442,1779802275000,-434.518641,0.00036101,7]
[423056443,1779802275000,-151.0,0.00036101,7]
[423056441,1779802275000,-1345.563285,0.00036101,7]
[423056439,1779802275000,-1345.563292,0.00036101,7]
[423056432,1779802275000,-2081.01718279,0.00036101,7]
[423056451,1779802275000,-697.502463,0.00036101,7]
[423056435,1779802275000,-151.0,0.00036101,7]
[423056434,1779802275000,-434.51865,0.00036101,7]
[423056431,1779802275000,-2081.017174,0.00036101,7]
[423056427,1779802275000,-151.0,0.00036101,7]
[423056428,1779802275000,-153.23437,0.00036101,7]
[423056430,1779802275000,-179.099584,0.00036101,7]
[423056429,1779802275000,-2081.017174,0.00036101,7]
[423056522,1779802276000,-1842.0326633,0.00037284,2]
[423056513,1779802276000,-2000.0,0.00037182,120]
[423056524,1779802276000,-575.26,0.000373,60]
[423056521,1779802276000,-200.0,0.00037284,2]
[423056516,1779802276000,-433.35617811,0.00037212,7]
[423056506,1779802276000,-1429.48098191,0.000371,30]
[423056518,1779802276000,-153.2,0.00037263,60]
[423056511,1779802276000,-150.0,0.00037125,120]
[423056505,1779802276000,-153.2,0.00037063,60]
[423056509,1779802276000,-173.3080712,0.000371,30]
[423056500,1779802276000,-150.0,0.00037,2]
[423056519,1779802276000,-351.0879834,0.00037274,120]
[423056520,1779802276000,-260.4103811,0.00037284,2]
[423056533,1779802276000,-157.99678112,0.00037528,7]
[423056523,1779802276000,-150.0,0.00037294,120]
[423056515,1779802276000,-160.0,0.000372,36]
[423056525,1779802276000,-150.0,0.00037327,120]
[423056517,1779802276000,-6323.29,0.00037244,2]
[423056527,1779802276000,-151.0,0.00037397,60]
[423056526,1779802276000,-153.2,0.00037363,60]
[423056528,1779802276000,-238.81781742,0.00037435,2]
[423056530,1779802276000,-225.60401449,0.00037456,120]
[423056535,1779802276000,-2000.0,0.00037534,30]
[423056537,1779802276000,-500.0,0.00037534,120]
[423056531,1779802276000,-153.2,0.00037463,60]
[423056532,1779802276000,-150.0,0.00037475,120]
[423056534,1779802276000,-305.88657649,0.00037534,10]
[423056508,1779802276000,-1429.48098189,0.000371,30]
[423056514,1779802276000,-160.0,0.000372,36]
[423056507,1779802276000,-1429.48098189,0.000371,30]
[423056492,1779802276000,-701.4,0.000369,120]
[423056504,1779802276000,-8380.86,0.00037,14]
[423056529,1779802276000,-218.4438059,0.00037456,120]
[423056476,1779802276000,-267.09377737,0.00036616,2]
[423056480,1779802276000,-2000.0,0.000367,7]
[423056479,1779802276000,-384.19,0.00036699,30]
[423056478,1779802276000,-500.0,0.00036699,30]
[423056482,1779802276000,-621.78829552,0.00036734,2]
[423056486,1779802276000,-1776.30922209,0.00036736,2]
[423056477,1779802276000,-155.88,0.00036675,120]
[423056484,1779802276000,-251.11897888,0.00036736,2]
[423056485,1779802276000,-200.0,0.00036736,2]
[423056483,1779802276000,-670.58624095,0.00036734,2]
[423056481,1779802276000,-209.40437684,0.00036732,2]
[423056487,1779802276000,-575.25,0.0003676,120]
[423056510,1779802276000,-173.3080712,0.000371,30]
[423056489,1779802276000,-350.0,0.00036849,5]
[423056490,1779802276000,-150.0,0.0003688,2]
[423056498,1779802276000,-3674.216,0.00037,120]
[423056497,1779802276000,-3674.216,0.00037,120]
[423056495,1779802276000,-678.94,0.00036963,120]
[423056491,1779802276000,-2053.60681186,0.00036899,2]
[423056493,1779802276000,-200.0,0.0003691,30]
[423056494,1779802276000,-152.0,0.00036933,5]
[423056496,1779802276000,-153.2,0.00036963,60]
[423056502,1779802276000,-344.18,0.00037,7]
[423056499,1779802276000,-3674.21,0.00037,120]
[423056501,1779802276000,-181.517,0.00037,2]
[423056503,1779802276000,-8380.85,0.00037,14]
[423056512,1779802276000,-153.2,0.00037163,60]
[423056488,1779802276000,-230.24578172,0.00036822,2]
[423056536,1779802276000,-500.0,0.00037534,120]
[423056539,1779802276000,-474.62307338,0.00037534,120]
[423056540,1779802276000,-500.0,0.00037534,7]
[423056566,1779802276000,-237.051859,0.00037535,7]
[423056572,1779802276000,-12478.01,0.00037593,14]
[423056571,1779802276000,-1709.23,0.00037593,14]
[423056569,1779802276000,-151.0,0.00037535,7]
[423056568,1779802276000,-237.051854,0.00037535,7]
[423056578,1779802276000,-150.0,0.00037659,120]
[423056581,1779802276000,-200.0,0.0003771,30]
[423056580,1779802276000,-198.47739322,0.0003771,30]
[423056579,1779802276000,-153.2,0.00037663,60]
[423056584,1779802276000,-150.0,0.00037744,120]
[423056585,1779802276000,-150.0,0.00037751,120]
[423056582,1779802276000,-230.24578172,0.00037715,2]
[423056589,1779802276000,-500.0,0.00037768,7]
[423056570,1779802276000,-153.2,0.00037563,60]
[423056587,1779802276000,-153.2,0.00037763,60]
[423056588,1779802276000,-150.0,0.00037764,120]
[423056586,1779802276000,-150.0,0.00037762,120]
[423056590,1779802276000,-150.0,0.000378,120]
[423056591,1779802276000,-350.0,0.00037808,5]
[423056599,1779802276000,-701.4,0.000379,120]
[423056594,1779802276000,-1910.18787185,0.00037832,2]
[423056593,1779802276000,-200.0,0.00037832,2]
[423056592,1779802276000,-270.0455652,0.00037832,2]
[423056538,1779802276000,-500.0,0.00037534,120]
[423056595,1779802276000,-575.26,0.0003784,86]
[423056598,1779802276000,-2316.0,0.00037894,11]
[423056596,1779802276000,-1652.84044678,0.00037863,2]
[423056600,1779802276000,-183.73,0.00037922,120]
[423056583,1779802276000,-150.0,0.00037722,120]
[423056577,1779802276000,-400.0,0.00037615,2]
[423056597,1779802276000,-153.2,0.00037863,60]
[423056574,1779802276000,-59703.0,0.000376,30]
[423056550,1779802276000,-168.95222,0.00037535,7]
[423056551,1779802276000,-151.0,0.00037535,7]
[423056543,1779802276000,-500.0,0.00037534,120]
[423056545,1779802276000,-522.12768216,0.00037534,120]
[423056544,1779802276000,-500.0,0.00037534,120]
[423056541,1779802276000,-500.0,0.00037534,7]
[423056542,1779802276000,-500.0,0.00037534,7]
[423056548,1779802276000,-235048.404801,0.00037534,2]
[423056547,1779802276000,-1585.509826,0.00037534,2]
[423056549,1779802276000,-151.0,0.00037535,7]
[423056552,1779802276000,-168.95222,0.00037535,7]
[423056554,1779802276000,-168.95222415,0.00037535,7]
[423056557,1779802276000,-151.0,0.00037535,7]
[423056546,1779802276000,-232926.998696,0.00037534,2]
[423056555,1779802276000,-151.0,0.00037535,7]
[423056565,1779802276000,-237.051859,0.00037535,7]
[423056556,1779802276000,-190.128078,0.00037535,7]
[423056567,1779802276000,-151.0,0.00037535,7]
[423056573,1779802276000,-1252.63,0.000376,60]
[423056563,1779802276000,-537.656573,0.00037535,7]
[423056561,1779802276000,-537.656575,0.00037535,7]
[423056575,1779802276000,-937.0936,0.00037615,30]
[423056560,1779802276000,-537.656575,0.00037535,7]
[423056564,1779802276000,-237.051859,0.00037535,7]
[423056559,1779802276000,-151.0,0.00037535,7]
[423056558,1779802276000,-151.0,0.00037535,7]
[423056576,1779802276000,-400.0,0.00037615,2]
[423056562,1779802276000,-537.656575,0.00037535,7]
[423056553,1779802276000,-168.95222,0.00037535,7]
[423056629,1779802277000,-1000.0,0.00038,2]
[423056631,1779802277000,-1000.0,0.00038,2]
[423056642,1779802277000,-344.18,0.00038,7]
[423056632,1779802277000,-1000.0,0.00038,2]
[423056639,1779802277000,-154.0,0.00038,120]
[423056640,1779802277000,-177.0,0.00038,120]
[423056635,1779802277000,-1000.0,0.00038,2]
[423056641,1779802277000,-1000.0,0.00038,30]
[423056634,1779802277000,-1000.0,0.00038,2]
[423056636,1779802277000,-1000.0,0.00038,2]
[423056630,1779802277000,-1000.0,0.00038,2]
[423056633,1779802277000,-1000.0,0.00038,2]
[423056652,1779802277000,-4611.2,0.000381,2]
[423056638,1779802277000,-2000.0,0.00038,38]
[423056649,1779802277000,-6322.5,0.000381,2]
[423056643,1779802277000,-8380.85,0.00038,14]
[423056650,1779802277000,-866.67,0.000381,2]
[423056647,1779802277000,-1389.391,0.000381,30]
[423056644,1779802277000,-153.2,0.00038063,60]
[423056651,1779802277000,-2599.99,0.000381,2]
[423056653,1779802277000,-2323.62,0.000381,2]
[423056654,1779802277000,-271.8434407,0.00038101,2]
[423056648,1779802277000,-1389.39,0.000381,30]
[423056626,1779802277000,-1000.0,0.00038,2]
[423056637,1779802277000,-1897.04718568,0.00038,2]
[423056623,1779802277000,-1000.0,0.00038,2]
[423056615,1779802277000,-800.0,0.00037968,30]
[423056620,1779802277000,-291.69929724,0.00037975,75]
[423056645,1779802277000,-150.0,0.00038089,120]
[423056602,1779802277000,-276.16,0.00037922,120]
[423056601,1779802277000,-311.77,0.00037922,120]
[423056603,1779802277000,-6323.3,0.00037929,2]
[423056605,1779802277000,-2000.0,0.00037965,120]
[423056606,1779802277000,-800.0,0.00037968,30]
[423056604,1779802277000,-153.2,0.00037963,60]
[423056613,1779802277000,-800.0,0.00037968,30]
[423056610,1779802277000,-800.0,0.00037968,30]
[423056608,1779802277000,-800.0,0.00037968,30]
[423056607,1779802277000,-800.0,0.00037968,30]
[423056624,1779802277000,-1000.0,0.00038,2]
[423056614,1779802277000,-800.0,0.00037968,30]
[423056609,1779802277000,-800.0,0.00037968,30]
[423056611,1779802277000,-263.0,0.00037968,30]
[423056617,1779802277000,-800.0,0.00037968,30]
[423056627,1779802277000,-1000.0,0.00038,2]
[423056628,1779802277000,-1000.0,0.00038,2]
[423056622,1779802277000,-1000.0,0.00038,2]
[423056625,1779802277000,-1000.0,0.00038,2]
[423056619,1779802277000,-815.0,0.00037968,30]
[423056618,1779802277000,-800.0,0.00037968,30]
[423056621,1779802277000,-1607.03347895,0.00038,2]
[423056616,1779802277000,-800.0,0.00037968,30]
[423056612,1779802277000,-800.0,0.00037968,30]
[423056646,1779802277000,-1000.0,0.000381,30]